fUST/lending_fUST_20250118
["ID","MTS","AMOUNT","RATE_DAILY","PERIOD"]
[349433315,1737179439989,-500.0,0.00021917,3]
[349433317,1737179439999,-502.12694066,0.00021917,2]
[349433320,1737179440010,-500.0,0.00021917,3]
[349433323,1737179440020,-500.0,0.00021917,3]
[349433324,1737179440029,-500.0,0.00021917,3]
[349433327,1737179440039,-500.0,0.00021917,3]
[349433329,1737179440048,-500.0,0.00021917,3]
[349433331,1737179440057,-500.0,0.00021917,3]
[349433333,1737179440068,-500.0,0.00021917,3]
[349433335,1737179440077,-500.0,0.00021917,3]
[349433337,1737179440086,-500.0,0.00021917,3]
[349433339,1737179440095,-500.0,0.00021917,2]
[349433342,1737179440107,-500.0,0.00021917,3]
[349433344,1737179440116,-499.0,0.00022053,2]
[349433348,1737179440126,-500.0,0.00022054,3]
[349433349,1737179440135,-158.1,0.00022054,3]
[349433351,1737179440146,-500.0,0.00022054,3]
[349433353,1737179440155,-500.0,0.00022054,3]
[349433355,1737179440164,-410.28,0.00022054,3]
[349433357,1737179440173,-628.91,0.00022054,3]
[349433359,1737179440183,-177.84,0.00022054,3]
[349433361,1737179440192,-246.38,0.00022054,3]
[349433363,1737179440202,-185.26,0.00022054,3]
[349433365,1737179440212,-232.44,0.00022054,3]
[349433368,1737179440221,-155.82,0.00022054,3]
[349433370,1737179440231,-500.0,0.00022054,3]
[349433371,1737179440240,-309.34,0.00022054,3]
[349433373,1737179440249,-400.66422117,0.00022054,3]
[349433375,1737179440258,-579.1,0.00022054,2]
[349433377,1737179440267,-500.0,0.00022054,3]
[349433379,1737179440276,-170.14,0.00022054,3]
[349433381,1737179440286,-500.0,0.00022054,3]
[349433383,1737179440295,-306.04,0.00022054,3]
[349433385,1737179440304,-917.95,0.00022054,3]
[349433387,1737179440313,-165.82,0.00022054,3]
[349433389,1737179440323,-500.0,0.00022054,3]
[349433391,1737179440332,-500.0,0.00022054,3]
[349433393,1737179440341,-222.63,0.00022054,3]
[349433395,1737179440353,-816.27,0.00022054,3]
[349433397,1737179440363,-500.0,0.00022054,3]
[349433399,1737179440371,-760.33,0.00022054,3]
[349433401,1737179440381,-500.0,0.00022054,3]
[349433403,1737179440390,-567.56,0.00022054,3]
[349433405,1737179440399,-500.0,0.00022054,3]
[349433407,1737179440408,-1007.63,0.00022054,3]
[349433409,1737179440417,-500.0,0.00022054,3]
[349433411,1737179440427,-500.0,0.00022054,3]
[349433413,1737179440436,-331.2,0.00022054,3]
[349433415,1737179440445,-576.09,0.00022054,3]
[349433417,1737179440455,-382.13,0.00022054,3]
[349433419,1737179440464,-463.12813198,0.00022054,3]
[349433421,1737179440474,-424.29,0.00022054,3]
[349433423,1737179440483,-500.0,0.00022191,3]
[349433425,1737179440492,-193.59,0.00022191,3]
[349433427,1737179440502,-347.6,0.00022191,3]
[349433429,1737179440512,-182.26,0.00022191,3]
[349433431,1737179440521,-500.0,0.00022191,3]
[349433433,1737179440530,-297.77,0.00022191,3]
[349433435,1737179440540,-917.95,0.00022191,3]
[349433438,1737179440549,-500.0,0.00022191,3]
[349433440,1737179440559,-500.0,0.00022191,3]
[349433442,1737179440568,-816.27,0.00022191,3]
[349433444,1737179440577,-550.96,0.00022191,3]
[349433446,1737179440589,-760.33,0.00022191,3]
[349433447,1737179440600,-500.0,0.00022191,3]
[349433449,1737179440610,-500.0,0.00022191,3]
[349433451,1737179440619,-1007.63,0.00022191,3]
[349433453,1737179440628,-500.0,0.00022191,3]
[349433455,1737179440637,-477.53,0.00022191,3]
[349433457,1737179440647,-288.87,0.000223,2]
[349433459,1737179440656,-500.0,0.00022328,3]
[349433461,1737179440665,-500.0,0.00022328,3]
[349433463,1737179440675,-917.95,0.00022328,3]
[349433465,1737179440684,-500.0,0.00022328,3]
[349433467,1737179440693,-345.71,0.00022328,3]
[349433469,1737179440702,-816.27,0.00022328,3]
[349433471,1737179440711,-760.33,0.00022328,3]
[349433473,1737179440721,-500.0,0.00022328,3]
[349433475,1737179440730,-500.0,0.00022328,3]
[349433477,1737179440739,-1007.63,0.00022328,3]
[349433479,1737179440748,-500.0,0.00022328,3]
[349433481,1737179440758,-500.0,0.00022465,3]
[349433484,1737179440767,-500.0,0.00022465,3]
[349433485,1737179440777,-917.95,0.00022465,3]
[349433488,1737179440786,-500.0,0.00022465,3]
[349433489,1737179440795,-816.27,0.00022465,3]
[349433491,1737179440805,-760.33,0.00022465,3]
[349433493,1737179440814,-500.0,0.00022465,3]
[349433494,1737179440823,-500.0,0.00022465,3]
[349433495,1737179440833,-1007.63,0.00022465,3]
[349433496,1737179440842,-500.0,0.00022465,3]
[349433497,1737179440856,-522.14771587,0.00022602,3]
[349433498,1737179440865,-269.11,0.00022602,3]
[349433499,1737179440875,-917.95,0.00022602,3]
[349433500,1737179440884,-500.0,0.00022602,3]
[349433501,1737179440893,-816.27,0.00022602,3]
[349433502,1737179440903,-760.33,0.00022602,3]
[349433503,1737179440912,-215.65,0.00022602,3]
[349433504,1737179440921,-500.0,0.00022602,3]
[349433505,1737179440931,-1007.63,0.00022602,3]
[349433506,1737179440940,-500.0,0.00022602,3]
[349433507,1737179440949,-499.536,0.0002263,2]
[349433508,1737179440959,-917.95,0.00022739,3]
[349433509,1737179440967,-188.11,0.00022739,3]
[349433511,1737179440976,-816.27,0.00022739,3]
[349433513,1737179440986,-760.33,0.00022739,3]
[349433515,1737179440995,-500.0,0.00022739,3]
[349433517,1737179441005,-1007.63,0.00022739,3]
[349433519,1737179441014,-500.0,0.00022739,3]
[349433521,1737179441023,-338.3049288,0.00022849,2]
[349433523,1737179441032,-420.0,0.00022873,2]
[349433525,1737179441042,-917.95,0.00022876,3]
[349433527,1737179441051,-816.27,0.00022876,3]
[349433529,1737179441060,-760.33,0.00022876,3]
[349433531,1737179441070,-500.0,0.00022876,3]
[349433533,1737179441079,-1007.63,0.00022876,3]
[349433535,1737179441088,-500.0,0.00022876,3]
[349433537,1737179441098,-2067.0,0.00022963,2]
[349433539,1737179441107,-535.0,0.00022963,2]
[349433541,1737179441117,-395.0,0.00022963,2]
[349433543,1737179441126,-153.5717534,0.00022986,2]
[349433545,1737179441136,-154.00414,0.00022986,2]
[349433547,1737179441146,-302.7566616,0.00022986,2]
[349433549,1737179441155,-352.3678893,0.00022986,2]
[349433551,1737179441164,-6601.28359129,0.00023,3]
[349433554,1737179441179,-837.41394149,0.00023,3]
[349433556,1737179441189,-917.95,0.00023013,3]
[349433558,1737179441198,-816.27,0.00023013,3]
[349433560,1737179441208,-760.33,0.00023013,3]
[349433562,1737179441217,-369.95,0.00023013,3]
[349433564,1737179441226,-1007.63,0.00023013,3]
[349433566,1737179441235,-500.0,0.00023013,3]
[349433567,1737179441244,-917.95,0.0002315,3]
[349433569,1737179441253,-816.27,0.0002315,3]
[349433572,1737179441263,-760.33,0.0002315,3]
[349433573,1737179441272,-1007.63,0.0002315,3]
[349433576,1737179441282,-500.0,0.0002315,3]
[349433577,1737179441291,-156.1459342,0.0002326,2]
[349433579,1737179441301,-917.95,0.00023287,3]
[349433582,1737179441310,-816.27,0.00023287,3]
[349433583,1737179441320,-735.70763561,0.00023287,3]
[349433586,1737179441332,-24.62236439,0.00023287,3]
[349433588,1737179441341,-1007.63,0.00023287,3]
[349433590,1737179441353,-500.0,0.00023287,3]
[349433592,1737179441363,-7438.69753278,0.00023415,2]
[349433594,1737179441372,-917.95,0.00023424,3]
[349433596,1737179441381,-110.33373477,0.00023424,3]
[349433598,1737179441393,-705.93626523,0.00023424,3]
[349433600,1737179441403,-760.33,0.00023424,3]
[349433602,1737179441412,-1007.63,0.00023424,3]
[349433604,1737179441422,-500.0,0.00023424,3]
[349433606,1737179441431,-2191.73371468,0.00023464,59]
[349433608,1737179441441,-917.95,0.00023561,3]
[349433610,1737179441450,-816.27,0.00023561,3]
[349433612,1737179441459,-760.33,0.00023561,3]
[349433614,1737179441469,-1007.63,0.00023561,3]
[349433616,1737179441478,-500.0,0.00023561,3]
[349433618,1737179441488,-212.4153872,0.00023575,2]
[349433620,1737179441497,-152.53,0.000236,31]
[349433622,1737179441506,-152.53,0.000236,31]
[349433624,1737179441516,-152.53,0.000236,31]
[349433626,1737179441525,-152.53,0.000236,31]
[349433628,1737179441535,-152.53,0.000236,31]
[349433630,1737179441543,-152.53,0.000236,31]
[349433632,1737179441552,-152.53,0.000236,31]
[349433634,1737179441561,-152.42,0.00023618,2]
[349433636,1737179441571,-2361.18849705,0.00023697,5]
[349433638,1737179441580,-283.6834395,0.00023697,5]
[349433640,1737179441593,-300.14790039,0.00023697,2]
[349433642,1737179441606,-500.0,0.00023697,2]
[349433644,1737179441615,-500.0,0.00023697,2]
[349433646,1737179441625,-500.0,0.00023697,2]
[349433648,1737179441634,-500.0,0.00023697,2]
[349433650,1737179441643,-308.13161401,0.00023697,2]
[349433652,1737179441653,-500.0,0.00023697,2]
[349433654,1737179441662,-463.44234487,0.00023697,2]
[349433656,1737179441671,-421.27377764,0.00023697,2]
[349437165,1737179567557,3010.2,0.0002,2]
[349437166,1737179607696,1030.71298092,0.0002,2]
[349437169,1737180115556,162.968025,0.00013973,2]
[349437209,1737180620806,10000.0,0.000167,2]
[349437266,1737180632863,-1381.28484484,0.0002,2]
[349437482,1737180638040,-456.65,0.0002,2]
[349437531,1737180638698,-5352.82217424,0.0002,2]
[349437533,1737180638708,-1129.0,0.000208,2]
[349437535,1737180638718,-627.9549893,0.0002102,2]
[349437537,1737180638727,-216.622803,0.00021122,2]
[349437539,1737180638737,-501.35234803,0.00021917,3]
[349437542,1737180638747,-500.0,0.00021917,3]
[349437544,1737180638756,-186.55259591,0.00021917,3]
[349437546,1737180638766,-500.0,0.00021917,3]
[349437548,1737180638775,-500.0,0.00021917,3]
[349437550,1737180638785,-500.0,0.00021917,3]
[349437551,1737180638794,-51.62058808,0.00021917,3]
[349437744,1737180640926,-448.37941192,0.00021917,3]
[349437745,1737180640935,-500.0,0.00021917,3]
[349437746,1737180640946,-500.0,0.00021917,3]
[349437747,1737180640957,-500.0,0.00021917,3]
[349437748,1737180640967,-500.0,0.00021917,3]
[349437749,1737180640976,-500.0,0.00021917,3]
[349437750,1737180640987,-500.0,0.00021917,3]
[349437751,1737180640996,-189.50729317,0.00021917,3]
[349437752,1737180641005,-500.0,0.00021917,3]
[349437753,1737180641015,-500.0,0.00021917,3]
[349437754,1737180641026,-503.90252617,0.00021917,3]
[349437755,1737180641036,-500.0,0.00021917,3]
[349437757,1737180641046,-503.07504202,0.00021917,3]
[349437758,1737180641055,-500.0,0.00021917,3]
[349437760,1737180641065,-500.0,0.00021917,3]
[349437762,1737180641074,-500.0,0.00021917,3]
[349437764,1737180641085,-500.0,0.00021917,3]
[349437766,1737180641095,-524.97101748,0.00021917,3]
[349437769,1737180641106,-500.0,0.00021917,3]
[349437771,1737180641118,-500.0,0.00021917,3]
[349437772,1737180641127,-500.0,0.00021917,3]
[349437775,1737180641138,-500.0,0.00021917,3]
[349437776,1737180641147,-500.0,0.00021917,3]
[349437778,1737180641157,-500.0,0.00021917,3]
[349437780,1737180641167,-500.0,0.00021917,3]
[349437782,1737180641177,-500.0,0.00021917,3]
[349437784,1737180641187,-500.0,0.00021917,3]
[349437786,1737180641197,-500.0,0.00021917,3]
[349437788,1737180641207,-500.0,0.00021917,3]
[349437790,1737180641217,-500.0,0.00021917,3]
[349437792,1737180641227,-500.0,0.00021917,3]
[349437794,1737180641237,-500.0,0.00021917,3]
[349437796,1737180641246,-500.0,0.00021917,3]
[349437798,1737180641256,-500.0,0.00021917,3]
[349437800,1737180641265,-500.0,0.00021917,3]
[349437802,1737180641275,-500.0,0.00021917,3]
[349437804,1737180641285,-500.0,0.00021917,3]
[349437806,1737180641295,-500.0,0.00021917,3]
[349437808,1737180641305,-500.0,0.00021917,3]
[349437825,1737180641449,-500.0,0.00021917,3]
[349437826,1737180641460,-500.0,0.00021917,3]
[349437827,1737180641470,-515.71771171,0.00021917,3]
[349437828,1737180641480,-500.0,0.00021917,3]
[349437829,1737180641489,-500.0,0.00021917,3]
[349437830,1737180641499,-500.0,0.00021917,3]
[349437831,1737180641509,-500.0,0.00021917,3]
[349437832,1737180641518,-500.0,0.00021917,3]
[349437833,1737180641528,-500.0,0.00021917,3]
[349437834,1737180641538,-500.0,0.00021917,3]
[349437835,1737180641547,-500.0,0.00021917,3]
[349437836,1737180641557,-500.0,0.00021917,3]
[349437837,1737180641567,-500.0,0.00021917,3]
[349437838,1737180641577,-500.0,0.00021917,3]
[349437839,1737180641589,-500.0,0.00021917,3]
[349437840,1737180641599,-500.0,0.00021917,3]
[349437841,1737180641610,-500.0,0.00021917,3]
[349437842,1737180641619,-500.0,0.00021917,3]
[349437843,1737180641629,-500.0,0.00021917,3]
[349437844,1737180641639,-500.0,0.00021917,3]
[349437845,1737180641649,-305.28023407,0.00021917,3]
[349437846,1737180641659,-500.0,0.00021917,3]
[349437847,1737180641668,-500.0,0.00021917,3]
[349437848,1737180641678,-500.0,0.00021917,3]
[349437849,1737180641687,-500.0,0.00021917,3]
[349437850,1737180641697,-500.0,0.00021917,3]
[349437851,1737180641706,-500.0,0.00021917,3]
[349437852,1737180641715,-500.0,0.00021917,3]
[349437853,1737180641725,-500.0,0.00021917,3]
[349437854,1737180641735,-500.0,0.00021917,3]
[349437855,1737180641745,-500.0,0.00021917,3]
[349437856,1737180641755,-500.0,0.00021917,3]
[349437857,1737180641764,-500.0,0.00021917,3]
[349437858,1737180641774,-500.0,0.00021917,3]
[349437859,1737180641784,-500.0,0.00021917,3]
[349437860,1737180641795,-500.0,0.00021917,3]
[349437861,1737180641804,-500.0,0.00021917,3]
[349437862,1737180641814,-500.0,0.00021917,3]
[349437863,1737180641824,-500.0,0.00021917,3]
[349437864,1737180641834,-500.0,0.00021917,3]
[349437865,1737180641844,-500.0,0.00021917,3]
[349437866,1737180641853,-500.0,0.00021917,3]
[349437867,1737180641865,-600.97993325,0.00021917,3]
[349437868,1737180641875,-540.87,0.00021917,3]
[349437869,1737180641885,-500.0,0.00021917,3]
[349437870,1737180641894,-500.0,0.00021917,3]
[349437871,1737180641904,-500.0,0.00021917,3]
[349437872,1737180641914,-500.0,0.00021917,3]
[349437873,1737180641923,-500.0,0.00021917,3]
[349437874,1737180641932,-500.0,0.00021917,3]
[349437875,1737180641946,-500.0,0.00021917,3]
[349437876,1737180641955,-312.96779325,0.00021917,3]
[349437877,1737180641965,-500.0,0.00021917,3]
[349437878,1737180641975,-500.0,0.00021917,3]
[349437879,1737180641986,-500.0,0.00022053,3]
[349437880,1737180641996,-622.77,0.00022054,3]
[349437881,1737180642006,-503.7,0.00022054,3]
[349437882,1737180642016,-627.82,0.00022054,3]
[349437883,1737180642025,-460.16,0.00022054,3]
[349437884,1737180642044,-500.0,0.00022054,3]
[349437885,1737180642059,-500.0,0.00022054,3]
[349437886,1737180642070,-510.88,0.00022054,3]
[349437887,1737180642080,-500.0,0.00022054,3]
[349437888,1737180642091,-618.96,0.00022054,3]
[349437889,1737180642101,-228.00396144,0.00022054,3]
[349437890,1737180642113,-500.0,0.00022054,3]
[349437891,1737180642123,-622.50614942,0.00022054,3]
[349437892,1737180642132,-500.0,0.00022054,3]
[349437893,1737180642141,-500.0,0.00022054,3]
[349437894,1737180642151,-500.0,0.00022054,3]
[349437895,1737180642160,-500.0,0.00022054,3]
[349437896,1737180642170,-500.0,0.00022054,3]
[349437897,1737180642180,-500.0,0.00022054,3]
[349437898,1737180642191,-250.73577519,0.00022054,3]
[349437899,1737180642201,-246.1437898,0.00022054,3]
[349437900,1737180642211,-500.0,0.00022054,3]
[349437901,1737180642221,-522.03,0.00022054,3]
[349437902,1737180642231,-540.87,0.00022054,3]
[349437903,1737180642242,-590.3275258,0.00022054,3]
[349437904,1737180642252,-500.0,0.00022191,3]
[349437905,1737180642262,-500.0,0.00022191,3]
[349437906,1737180642272,-500.0,0.00022191,3]
[349437907,1737180642281,-500.0,0.00022191,3]
[349437908,1737180642291,-414.31484923,0.00022191,3]
[349437909,1737180642301,-540.87,0.00022191,3]
[349437910,1737180642311,-445.58002384,0.00022327,3]
[349437911,1737180642321,-500.0,0.00022328,3]
[349437912,1737180642330,-500.0,0.00022328,3]
[349437913,1737180642340,-500.0,0.00022328,3]
[349437914,1737180642350,-500.0,0.00022328,3]
[349437915,1737180642360,-540.87,0.00022328,3]
[349437916,1737180642372,-259.98,0.000224,2]
[349437917,1737180642382,-395.0,0.00022441,2]
[349437918,1737180642393,-1129.0,0.00022464,4]
[349437919,1737180642404,-500.0,0.00022465,3]
[349437920,1737180642414,-500.0,0.00022465,3]
[349437921,1737180642424,-500.0,0.00022465,3]
[349437922,1737180642434,-500.0,0.00022465,3]
[349437923,1737180642444,-540.87,0.00022465,3]
[349437924,1737180642454,-567.0,0.00022602,3]
[349437925,1737180642463,-500.0,0.00022602,3]
[349437926,1737180642474,-500.0,0.00022602,3]
[349437927,1737180642484,-500.0,0.00022602,3]
[349437928,1737180642494,-540.87,0.00022602,3]
[349437929,1737180642503,-478.919,0.0002262,2]
[349437930,1737180642513,-500.0,0.00022739,3]
[349437931,1737180642523,-500.0,0.00022739,3]
[349437932,1737180642533,-500.0,0.00022739,3]
[349437933,1737180642543,-540.87,0.00022739,3]
[349437934,1737180642552,-500.0,0.00022876,3]
[349437935,1737180642562,-500.0,0.00022876,3]
[349437936,1737180642571,-500.0,0.00022876,3]
[349437937,1737180642581,-540.87,0.00022876,3]
[349437938,1737180642591,-500.0,0.00022999,3]
[349437939,1737180642607,-7438.69753278,0.00023,3]
[349437940,1737180642618,-500.0,0.00023013,3]
[349437941,1737180642628,-500.0,0.00023013,3]
[349437942,1737180642638,-500.0,0.00023013,3]
[349437943,1737180642649,-540.87,0.00023013,3]
[349437944,1737180642659,-7438.69753278,0.00023083,2]
[349437945,1737180642669,-500.0,0.0002315,3]
[349437946,1737180642679,-500.0,0.0002315,3]
[349437947,1737180642689,-500.0,0.0002315,3]
[349437948,1737180642699,-540.87,0.0002315,3]
[349437949,1737180642709,-500.0,0.00023287,3]
[349437950,1737180642719,-500.0,0.00023287,3]
[349437951,1737180642729,-500.0,0.00023287,3]
[349437952,1737180642739,-540.87,0.00023287,3]
[349437953,1737180642749,-500.0,0.00023423,3]
[349437954,1737180642759,-500.0,0.00023424,3]
[349437955,1737180642769,-500.0,0.00023424,3]
[349437956,1737180642779,-500.0,0.00023424,3]
[349437957,1737180642789,-92.42289668,0.00023424,3]
[349437958,1737180642804,-448.44710332,0.00023424,3]
[349437959,1737180642814,-1441.55289668,0.00023486,59]
[349437960,1737180642826,-4695.8954507,0.00023486,59]
[349438050,1737180643951,-500.0,0.00021917,3]
[349438053,1737180643962,-500.0,0.00021917,3]
[349438055,1737180643972,-500.0,0.00022053,3]
[349438057,1737180643982,-500.0,0.00022601,3]
[349438059,1737180643992,-500.0,0.00023166,3]
[349438061,1737180644001,-2629.49236876,0.00023486,59]
[349438063,1737180644011,-500.0,0.00023561,3]
[349438065,1737180644022,-500.0,0.00023561,3]
[349438067,1737180644032,-500.0,0.00023561,3]
[349438069,1737180644041,-540.87,0.00023561,3]
[349438071,1737180644051,-152.55,0.000236,31]
[349438073,1737180644061,-152.55,0.000236,31]
[349438075,1737180644070,-152.55,0.000236,31]
[349438077,1737180644080,-152.55,0.000236,31]
[349438079,1737180644089,-152.55,0.000236,31]
[349438081,1737180644098,-152.55,0.000236,31]
[349438083,1737180644108,-152.55,0.000236,31]
[349438085,1737180644118,-11581.78763098,0.00023698,2]
[349438087,1737180644130,-1857.5760012,0.00023698,2]
[349438089,1737180644142,-36725.96894524,0.00023698,2]
[349438324,1737180646760,-310.000007,0.00021917,3]
[349438325,1737180646772,-189.999993,0.00021917,3]
[349438326,1737180646781,-306.87957199,0.00021917,3]
[349438327,1737180646794,-803.20042801,0.00021917,3]
[349438328,1737180646803,-500.0,0.00022054,3]
[349438329,1737180646812,-1110.08,0.00022054,3]
[349438330,1737180646822,-1110.08,0.00022191,3]
[349438331,1737180646831,-1110.08,0.00022328,3]
[349438332,1737180646840,-1110.08,0.00022465,3]
[349438333,1737180646849,-152.0,0.00022494,2]
[349438334,1737180646859,-1110.08,0.00022602,3]
[349438335,1737180646871,-500.0,0.00023599,3]
[349438336,1737180646880,-500.0,0.00023697,3]
[349438337,1737180646889,-500.0,0.00023697,3]
[349438338,1737180646898,-5361.62322189,0.00023698,2]
[349438339,1737180646907,-500.0,0.00023698,3]
[349438340,1737180646916,-500.0,0.00023698,3]
[349438341,1737180646925,-540.87,0.00023698,3]
[349438342,1737180646934,-9963.8859486,0.00023718,7]
[349438343,1737180646946,-500.0,0.00023753,3]
[349438344,1737180646956,-437.90002,0.00023754,7]
[349438345,1737180646966,-213.17,0.00023763,2]
[349438346,1737180646975,-166.0,0.00023806,2]
[349438347,1737180646985,-185.40626021,0.00023817,2]
[349438348,1737180646995,-500.0,0.00023817,2]
[349438349,1737180647005,-500.0,0.00023817,2]
[349438350,1737180647014,-500.0,0.00023817,2]
[349438351,1737180647025,-500.0,0.00023817,2]
[349438352,1737180647035,-291.2635858,0.00023817,2]
[349438353,1737180647044,-500.0,0.00023817,2]
[349438354,1737180647053,-500.0,0.00023817,2]
[349438355,1737180647063,-217.44993648,0.00023817,2]
[349438356,1737180647073,-500.0,0.00023817,2]
[349438357,1737180647082,-500.0,0.00023817,2]
[349438358,1737180647092,-500.0,0.00023817,2]
[349438359,1737180647104,-500.0,0.00023817,2]
[349438360,1737180647116,-500.0,0.00023817,2]
[349438361,1737180647125,-500.0,0.00023817,2]
[349438362,1737180647135,-398.77359954,0.00023817,2]
[349438363,1737180647145,-500.0,0.00023817,2]
[349438364,1737180647154,-381.07247724,0.00023817,2]
[349438365,1737180647164,-596.34423449,0.00023817,2]
[349438366,1737180647174,-500.0,0.00023817,3]
[349438367,1737180647183,-500.0,0.00023817,3]
[349438368,1737180647193,-500.0,0.00023817,3]
[349438369,1737180647203,-500.0,0.00023817,3]
[349438370,1737180647213,-500.0,0.00023817,3]
[349438371,1737180647223,-500.0,0.00023817,3]
[349438372,1737180647232,-1381.92948004,0.00023817,5]
[349438373,1737180647241,-283.68343951,0.00023817,5]
[349438374,1737180647251,-27892.1251865,0.00023818,61]
[349438377,1737181027952,162.968025,0.00013973,2]
[349438420,1737181750709,10000.0,0.000167,2]
[349438426,1737181813132,5096.623,0.000167,2]
[349438437,1737181832027,-504.1996892,0.00017855,2]
[349438438,1737181832037,-300.0,0.00018703,2]
[349438439,1737181832046,-171.91767698,0.00018704,2]
[349438440,1737181832055,-525.5982463,0.00018704,2]
[349438571,1737181837967,-1875.43412888,0.00018704,2]
[349438573,1737181837979,-4965.37987732,0.00018704,2]
[349438576,1737181837991,-500.0,0.00018704,2]
[349438582,1737181838050,-500.0,0.00018704,2]
[349438768,1737181839886,-594.51,0.00018704,2]
[349438778,1737181839965,-1876.73229566,0.00018704,2]
[349438780,1737181839976,-3563.84174368,0.00018704,2]
[349439067,1737181842910,-3988.77323207,0.00018704,2]
[349439069,1737181842922,-12563.00000056,0.00018704,2]
[349439071,1737181842933,-300.0,0.00018704,2]
[349439077,1737181842993,-5867.05588134,0.00018704,2]
[349439079,1737181843004,-589.87120693,0.00018704,2]
[349439380,1737181846102,-502.9,0.00018704,2]
[349441409,1737182345042,162.897646,0.00013973,2]
[349441474,1737183032696,-584.341551,0.00017463,2]
[349441476,1737183032706,-15804.15156358,0.00017482,2]
[349441478,1737183032720,-9095.84843642,0.00017482,2]
[349441480,1737183032729,-15063.87352084,0.00017723,2]
[349441482,1737183032738,-8983.99530519,0.00018432,5]
[349441484,1737183032748,-12545.69982163,0.00018432,2]
[349441486,1737183032758,-1655.95954911,0.00018698,2]
[349441488,1737183032768,-64418.93492032,0.00018798,5]
[349441490,1737183032778,-318.66290617,0.0001881,2]
[349441493,1737183032788,-157.87,0.00018873,2]
[349441495,1737183032797,-500.0,0.00018873,2]
[349441497,1737183032807,-151.0,0.00018899,2]
[349441499,1737183032816,-298.962032,0.00018899,2]
[349441501,1737183032825,-298.962032,0.00018899,2]
[349441503,1737183032835,-151.0,0.00018899,2]
[349441504,1737183032844,-151.0,0.00018899,2]
[349441507,1737183032854,-151.0,0.00018899,2]
[349441509,1737183032864,-300.89996,0.00018899,2]
[349441511,1737183032873,-300.89996,0.00018899,2]
[349441513,1737183032882,-585.416636,0.00018899,2]
[349441515,1737183032892,-585.416636,0.00018899,2]
[349441517,1737183032901,-223.154255,0.00018899,2]
[349441519,1737183032911,-158.788414,0.00018899,2]
[349441521,1737183032920,-223.154255,0.00018899,2]
[349441523,1737183032930,-500.0,0.00018899,2]
[349441525,1737183032939,-216.73559317,0.00018899,2]
[349441527,1737183032949,-500.0,0.00018899,2]
[349441529,1737183032958,-500.0,0.00018899,2]
[349441531,1737183032967,-480.22770746,0.00018899,2]
[349441533,1737183032977,-500.0,0.00018899,2]
[349441535,1737183032987,-500.0,0.00018899,2]
[349441537,1737183032996,-500.0,0.00018899,2]
[349441539,1737183033006,-500.0,0.00018899,2]
[349441541,1737183033015,-500.0,0.00018899,2]
[349441543,1737183033024,-500.0,0.00018899,2]
[349441545,1737183033034,-500.0,0.00018899,2]
[349441547,1737183033044,-500.0,0.00018899,2]
[349441549,1737183033053,-500.0,0.00018899,2]
[349441551,1737183033063,-500.0,0.00018899,2]